bitfinex/quotes_ETHUSD_20230701
["timestamp","ask_amount","ask_price","bid_price","bid_amount"]
[1688175373649,5.18107,1930.1,1929.9,3.2384]
[1688175373886,10.36214,1930.1,1929.9,3.2384]
[1688175374051,5.18107,1930.1,1929.9,3.2384]
[1688175374491,0.0038905,1930.0,1929.9,3.2384]
[1688175375082,0.0038905,1930.0,1929.9,4.13890743]
[1688175375386,10.36229,1930.1,1929.9,4.13890762]
[1688175375586,5.18134,1930.0,1929.9,2.7384]
[1688175375771,11.657602,1930.1,1929.7,0.5388889]
[1688175375979,14.248132,1930.1,1929.7,3.93440893]
[1688175376193,12.95286,1930.1,1929.8,0.90052003]
[1688175376502,0.0038905,1930.0,1929.8,0.90052003]
[1688175377084,5.1852605,1930.0,1929.8,0.90052003]
[1688175377752,10.3666305,1930.0,1929.8,0.90052003]
[1688175378278,10.3666305,1930.0,1929.7,4.63296383]
[1688175378479,10.3666305,1930.0,1929.7,9.81510383]
[1688175379090,10.3666305,1930.0,1929.7,11.36484221]
[1688175380357,10.3666305,1930.0,1929.7,9.81510383]
[1688175383898,10.3666305,1930.0,1929.7,14.99725383]
[1688175385273,0.0038905,1930.0,1929.8,1.823]
[1688175385597,0.0038905,1930.0,1929.9,12.95402]
[1688175386297,1.037063,1930.5,1929.9,21.08354184]
[1688175386515,10.35875,1930.8,1930.3,0.5]
[1688175386811,10.35811,1930.9,1930.4,12.95032]
[1688175386977,10.35762,1931.0,1930.4,15.54762]
[1688175387176,10.35762,1931.0,1930.4,17.40432]
[1688175387497,10.35762,1931.0,1930.4,18.75975805]
[1688175387794,10.35762,1931.0,1930.5,1.87597581]
[1688175387999,15.63447184,1931.0,1930.4,5.19659805]
[1688175388172,2.68752184,1930.9,1930.3,5.18033]
[1688175388379,12.94852,1930.8,1930.3,10.36068]
[1688175388584,15.63604184,1930.8,1930.3,10.36068]
[1688175390044,2.68752184,1930.7,1930.2,2.5973]
[1688175390180,1.34,1930.5,1930.1,30.03]
[1688175390378,10.36064,1930.4,1930.0,2.4727]
[1688175390580,12.95077,1930.4,1930.0,2.4727]
[1688175391509,0.00346424,1930.3,1930.0,7.65403]
[1688175391729,0.00346424,1930.3,1930.0,14.118918]
[1688175392026,0.00346424,1930.3,1930.0,7.65403]
[1688175392320,5.18409424,1930.3,1930.0,2.4727]
[1688175392633,10.36126,1930.3,1929.9,5.18146]
[1688175392834,10.36126,1930.3,1929.9,12.83227]
[1688175392999,11.656401,1930.3,1929.9,12.78227]
[1688175393196,11.656401,1930.3,1929.9,7.60066]
[1688175393449,0.00347525,1930.2,1929.9,7.60066]
[1688175393650,5.18449525,1930.2,1929.9,7.60066]
[1688175393853,5.18449525,1930.2,1929.9,12.78227]
[1688175394205,0.00347525,1930.2,1929.9,15.37307]
[1688175394406,0.00347525,1930.2,1929.9,17.14344132]
[1688175394639,0.00347525,1930.2,1929.9,17.41118103]
[1688175395427,10.36029,1930.5,1929.9,17.41118103]
[1688175396504,0.00349711,1930.4,1929.9,17.41118103]
[1688175396705,5.18381711,1930.4,1929.9,17.41118103]
[1688175401948,0.00349711,1930.4,1930.0,4.42863994]
[1688175402144,0.00349711,1930.4,1930.1,16.10765]
[1688175402358,0.00349711,1930.4,1930.2,2.5185]
[1688175402656,2.58911,1931.2,1930.3,15.63887184]
[1688175402657,6.71784,1931.1,1930.3,15.63887184]
[1688175402825,5.179,1930.9,1930.4,1.56388718]
[1688175403023,10.35813,1930.9,1930.6,10.35942]
[1688175403547,0.0035303,1930.8,1930.6,7.69821]
[1688175403845,10.3621803,1930.8,1930.6,2.5185]
[1688175404212,12.9517803,1930.8,1930.3,6.99752]
[1688175404546,12.9517803,1930.8,1930.4,2.5185]
[1688175405612,12.9517803,1930.8,1930.4,12.879]
[1688175405943,10.3621803,1930.8,1930.4,12.879]
[1688175406107,12.9517803,1930.8,1930.4,12.879]
[1688175406308,12.9517803,1930.8,1930.4,18.65665184]
[1688175406309,0.0035303,1930.8,1930.4,18.65665184]
[1688175406543,0.0035303,1930.8,1930.5,3.67170238]
[1688175406731,0.0035303,1930.8,1930.6,12.94932]
[1688175407243,0.0035303,1930.8,1930.7,17.24745]
[1688175407435,5.17866,1931.0,1930.7,14.65772]
[1688175407937,10.35745,1931.0,1930.7,14.65772]
[1688175408445,10.35745,1931.0,1930.7,14.63179674]
[1688175408446,0.00337321,1930.9,1930.7,14.63179674]
[1688175408640,0.00337321,1930.9,1930.7,16.35396241]
[1688175409434,0.00337321,1930.9,1930.7,16.32803915]
[1688175410446,0.00337321,1930.9,1930.7,16.30211589]
[1688175412115,5.18231321,1930.9,1930.7,11.12265589]
[1688175412317,5.18231321,1930.9,1930.7,9.40049022]
[1688175412817,5.18231321,1930.9,1930.7,7.68866]
[1688175413018,5.18231321,1930.9,1930.7,12.86812]
[1688175413256,0.00337321,1930.9,1930.7,12.86812]
[1688175413441,0.00337321,1930.9,1930.7,12.86074413]
[1688175413630,0.00337321,1930.9,1930.7,7.68128413]
[1688175414721,5.18231321,1930.9,1930.7,7.68128413]
[1688175415770,0.00337321,1930.9,1930.7,7.68128413]
[1688175415973,0.00337321,1930.9,1930.7,14.31963154]
[1688175416438,0.00337321,1930.9,1930.7,14.31441925]
[1688175418278,0.00337321,1930.9,1930.7,16.90414925]
[1688175419660,0.00337321,1930.9,1930.8,10.44152184]
[1688175419863,10.35497,1931.5,1930.8,23.38952184]
[1688175420176,10.35497,1931.5,1931.0,1.338]
[1688175420468,10.35497,1931.5,1931.1,10.35652]
[1688175422263,10.35497,1931.5,1931.2,7.82902]
[1688175424160,12.94363,1931.5,1931.2,2.651]
[1688175425669,12.94363,1931.5,1931.2,7.82908]
[1688175425859,0.41398421,1931.7,1931.3,0.79933839]
[1688175426199,10.35367,1931.7,1931.4,5.17753]
[1688175428993,5.17678,1931.7,1931.4,5.17753]
[1688175429195,7.11523,1932.0,1931.4,12.94391]
[1688175429398,12.42025759,1932.0,1931.4,12.94391]
[1688175429594,7.24403759,1932.0,1931.5,1.294391]
[1688175429765,7.24403759,1932.0,1931.6,12.84485]
[1688175430192,7.11523,1932.0,1931.6,12.84485]
[1688175430448,1.9391,1932.0,1931.6,12.84485]
[1688175431231,7.11512,1932.0,1931.6,12.84485]
[1688175431545,7.53963654,1932.0,1931.6,12.84485]
[1688175432045,2.36361654,1932.0,1931.6,12.84485]
[1688175432343,2.36361654,1932.0,1931.6,14.6907151]
[1688175433131,7.53962654,1932.0,1931.6,14.6907151]
[1688175436029,2.36361654,1932.0,1931.6,14.6907151]
[1688175436755,1.9391,1932.0,1931.6,14.6907151]
[1688175437339,7.1151,1932.0,1931.6,14.6907151]
[1688175438661,7.1151,1932.0,1931.6,12.84485]
[1688175439673,16.22209,1932.0,1931.4,5.17743]
[1688175439841,10.35368,1931.7,1931.4,2.7311]
[1688175440035,11.647882,1931.7,1931.4,2.7311]
[1688175440236,14.236272,1931.7,1931.4,2.7311]
[1688175440433,14.236272,1931.7,1931.1,3.5]
[1688175440635,1.339,1931.2,1930.9,30.03]
[1688175440844,6.51735,1931.2,1930.9,43.11861]
[1688175441047,11.6957,1931.2,1930.9,7.90981]
[1688175441955,11.6957,1931.2,1930.9,2.7311]
[1688175442170,11.6957,1931.2,1930.6,3.0]
[1688175442171,14.374223,1931.2,1930.6,5.1795]
[1688175442331,14.374223,1931.2,1930.7,2.561]
[1688175442332,1.343,1931.0,1930.7,2.561]
[1688175442530,6.52186,1931.0,1930.8,5.17919]
[1688175443062,11.70072,1931.0,1930.7,7.74042]
[1688175443271,11.70072,1931.0,1930.5,30.03]
[1688175443272,14.29005,1931.0,1930.5,30.03]
[1688175443479,14.29005,1931.0,1930.5,2.561]
[1688175443776,14.29005,1931.0,1930.5,8.15091613]
[1688175444467,14.29005,1931.0,1930.5,13.33091613]
[1688175444769,6.52186,1931.0,1930.5,18.01529226]
[1688175445065,5.17823,1931.2,1930.7,10.35866]
[1688175445228,5.17795,1931.3,1930.7,12.94839]
[1688175445426,5.17795,1931.3,1930.9,10.35759]
[1688175445427,10.35604,1931.3,1930.9,10.35759]
[1688175445631,10.35604,1931.3,1930.9,5.17879]
[1688175445632,12.94496,1931.3,1930.9,5.17879]
[1688175445963,14.28796,1931.3,1930.9,5.17879]
[1688175446168,14.28796,1931.3,1930.9,12.94352]
[1688175446335,5.17795,1931.3,1930.9,14.26464597]
[1688175446975,10.35604,1931.3,1930.9,14.26464597]
[1688175447139,10.35604,1931.3,1930.9,7.76459]
[1688175447140,12.94496,1931.3,1930.9,7.76459]
[1688175447751,14.27896,1931.3,1930.9,2.5858]
[1688175449270,14.27896,1931.3,1930.9,12.94364]
[1688175449571,4.5512,1931.6,1930.9,18.22062184]
[1688175449572,13.24855,1931.6,1930.9,18.22062184]
[1688175449892,13.24855,1931.6,1931.0,10.43158402]
[1688175449893,10.35428,1931.6,1931.0,10.43158402]
[1688175450194,10.35428,1931.6,1931.1,12.94551]
[1688175451274,1.036366,1931.8,1931.1,13.44551]
[1688175451491,5.58134994,1931.8,1931.3,10.35528]
[1688175451652,5.17665,1931.8,1931.5,5.17727]
[1688175452055,10.3533,1931.8,1931.5,5.17727]
[1688175453082,11.6963,1931.8,1931.5,5.17727]
[1688175453276,11.6963,1931.8,1931.4,7.8061]
[1688175453277,14.28455,1931.8,1931.4,7.8061]
[1688175454109,11.6963,1931.8,1931.4,12.98369]
[1688175454265,11.6963,1931.8,1931.4,14.54259304]
[1688175455166,6.51965,1931.8,1931.4,14.54259304]
[1688175456069,8.18008621,1931.9,1931.5,2.70395053]
[1688175456070,0.41557621,1931.9,1931.5,2.70395053]
[1688175456269,1.9391,1932.0,1931.6,10.35384]
[1688175456475,1.9391,1932.0,1931.6,11.91847205]
[1688175457098,12.29108,1932.0,1931.6,11.91847205]
[1688175457505,7.11509,1932.0,1931.6,6.74155205]
[1688175457672,12.29106,1932.0,1931.6,14.50712205]
[1688175458688,7.11508,1932.0,1931.6,6.74155205]
[1688175458973,12.29106,1932.0,1931.6,1.56463205]
[1688175459284,12.29106,1932.0,1931.6,6.74168205]
[1688175459485,14.87905,1932.0,1931.6,6.74147205]
[1688175460208,14.87905,1932.0,1931.7,0.6741472]
[1688175460471,7.11508,1932.0,1931.7,5.8509172]
[1688175460815,7.11508,1932.0,1931.7,11.0276972]
[1688175462089,1.9391,1932.0,1931.7,11.0276972]
[1688175462525,7.11512,1932.0,1931.7,11.0276972]
[1688175462708,7.11512,1932.0,1931.7,5.8509172]
[1688175462913,7.11512,1932.0,1931.7,11.0276972]
[1688175463114,7.11512,1932.0,1931.7,5.8509172]
[1688175464642,12.29114,1932.0,1931.7,5.8509172]
[1688175465188,12.29114,1932.0,1931.7,8.3181172]
[1688175465499,7.11512,1932.0,1931.7,8.3181172]
[1688175470927,12.29114,1932.0,1931.7,8.3181172]
[1688175471298,12.29114,1932.0,1931.7,7.64397]
[1688175472332,12.29114,1932.0,1931.7,12.82075]
[1688175472534,12.29114,1932.0,1931.7,7.64397]
[1688175472711,1.34,1931.8,1931.4,5.17745]
[1688175473037,1.34,1931.8,1931.5,12.94301]
[1688175473241,1.343,1931.9,1931.5,12.94301]
[1688175474843,6.51926,1931.9,1931.5,12.94301]
[1688175477347,1.343,1931.9,1931.5,12.94301]
[1688175477726,6.51926,1931.9,1931.5,12.94301]
[1688175477951,1.343,1931.6,1931.4,10.35489]
[1688175478132,1.339,1931.5,1931.3,5.17771]
[1688175478310,1.339,1931.5,1931.3,10.35555]
[1688175478501,1.339,1931.5,1931.3,5.1777]
[1688175478707,6.51634,1931.5,1931.3,5.1777]
[1688175478920,10.35468,1931.5,1931.2,7.73595]
[1688175479116,10.35468,1931.5,1931.3,5.17785]
[1688175479117,5.17734,1931.5,1931.3,5.17785]
[1688175479302,6.51718,1931.6,1931.3,10.3557]
[1688175480546,11.69434,1931.6,1931.3,10.3557]
[1688175482256,11.69434,1931.6,1931.3,5.17785]
[1688175483544,11.69434,1931.6,1931.3,10.3557]
[1688175485997,1.343,1931.5,1931.2,7.73595]
[1688175486154,6.51059,1931.4,1931.2,7.73595]
[1688175486539,5.17759,1931.4,1931.2,7.73595]
[1688175486846,5.3568,1931.6,1931.2,12.91407]
[1688175486847,10.35451,1931.6,1931.2,12.91407]
[1688175487069,5.17724,1931.6,1931.2,12.91407]
[1688175487272,5.17724,1931.6,1931.3,6.48549739]
[1688175487585,5.17724,1931.6,1931.3,11.66334739]
[1688175488240,5.17724,1931.6,1931.3,6.48549739]
[1688175488443,14.28594,1931.6,1931.3,0.01643039]
[1688175488777,14.28594,1931.6,1931.2,2.558]
[1688175489276,14.28594,1931.6,1931.1,5.17825]
[1688175489741,14.28594,1931.6,1931.1,7.64925]
[1688175489941,15.973383,1931.6,1931.1,7.64925]
[1688175491706,6.52018,1931.6,1931.2,2.68752184]
[1688175491907,10.35436,1931.6,1931.3,5.19414039]
[1688175493300,5.17718,1931.6,1931.3,10.37199039]
[1688175501021,10.35436,1931.6,1931.3,10.37199039]
[1688175501387,5.17705,1931.6,1931.3,10.37199039]
[1688175501590,5.17705,1931.6,1931.4,1.03719904]
[1688175501781,14.2818,1931.6,1931.1,7.64937]
[1688175503288,16.96932184,1931.6,1930.9,30.03]
[1688175503615,16.96932184,1931.6,1930.9,7.69641]
[1688175503616,14.2875,1931.4,1930.9,7.69641]
[1688175504188,14.2875,1931.4,1930.9,12.87534]
[1688175504385,14.2875,1931.4,1930.9,13.28409277]
[1688175506114,6.5208,1931.4,1930.9,15.87355277]
[1688175506412,1.343,1931.4,1930.9,12.87534]
[1688175506612,14.28698,1931.4,1930.9,9.46698647]
[1688175506829,14.28698,1931.4,1930.9,4.28807647]
[1688175507017,14.28698,1931.4,1930.9,2.5175]
[1688175507648,14.28698,1931.4,1930.9,7.69635]
[1688175509427,14.28698,1931.4,1930.9,12.87528]
[1688175510214,14.28698,1931.4,1930.9,15.46474]
[1688175511450,11.69819,1931.4,1930.9,15.46474]
[1688175512021,14.28698,1931.4,1930.9,17.18529747]
[1688175512219,12.94398,1931.4,1930.9,17.18529747]
[1688175516654,1.343,1931.5,1930.9,17.18529747]
[1688175516955,10.552359,1931.7,1930.9,21.21081931]
[1688175517133,9.213359,1931.7,1931.0,4.80860377]
[1688175517322,5.17682,1931.7,1931.2,12.94525]
[1688175517527,5.17682,1931.7,1931.3,2.4764]
[1688175517528,10.35364,1931.7,1931.3,2.4764]
[1688175517724,12.94203,1931.7,1931.3,2.4764]
[1688175517924,15.704133,1931.7,1931.1,12.18275]
[1688175518128,15.704133,1931.7,1931.2,2.4764]
[1688175518329,16.740559,1931.7,1931.2,2.4764]
[1688175518640,1.343,1931.6,1931.1,1.8262]
[1688175518828,12.94356,1931.5,1931.1,1.8262]
[1688175519543,12.94356,1931.5,1931.1,5.17833]
[1688175519544,14.372216,1931.5,1931.1,5.17833]
[1688175519756,15.706216,1931.5,1931.1,5.17833]
[1688175521344,11.6889,1931.5,1931.1,5.17833]
[1688175521549,10.3549,1931.5,1931.1,10.35672]
[1688175525748,10.3549,1931.5,1931.1,5.17833]
[1688175525984,12.94356,1931.5,1931.1,5.17833]
[1688175526683,12.94356,1931.5,1931.1,10.35672]
[1688175526881,12.94356,1931.5,1931.2,1.035672]
[1688175527086,10.3549,1931.5,1931.2,6.213632]
[1688175531184,10.3549,1931.5,1931.2,5.17796]
[1688175534491,12.94356,1931.5,1931.2,5.17796]
[1688175538424,12.94356,1931.5,1931.1,10.35659]
[1688175539293,12.94356,1931.5,1931.1,5.17826]
[1688175548463,12.94356,1931.5,1931.1,10.35665]
[1688175548664,12.94356,1931.5,1931.1,12.0798103]
[1688175548852,12.94356,1931.5,1931.1,1.7231603]
[1688175549052,12.94356,1931.5,1931.0,4.28563296]
[1688175549355,12.94356,1931.5,1931.0,2.4764]
[1688175550778,12.94356,1931.5,1930.8,1.7696]
[1688175550779,15.63108184,1931.5,1930.8,1.7696]
[1688175551089,15.63108184,1931.5,1930.8,2.4762]
[1688175551090,1.339,1931.3,1930.8,2.4762]
[1688175551377,2.68752184,1931.4,1930.8,7.65539]
[1688175551378,12.94565,1931.2,1930.8,7.65539]
[1688175551578,12.94565,1931.2,1930.8,12.83459]
[1688175551879,14.27965,1931.2,1930.8,12.83459]
[1688175552074,13.118485,1931.2,1930.8,12.83459]
[1688175552648,15.707545,1931.2,1930.8,12.83459]
[1688175552846,15.707545,1931.2,1930.8,7.65539]
[1688175556458,15.707545,1931.2,1930.8,2.4762]
[1688175563076,15.707545,1931.2,1930.8,7.65534]
[1688175563277,14.27958,1931.2,1930.8,7.65534]
[1688175563697,12.94558,1931.2,1930.8,7.65534]
[1688175564093,12.94558,1931.2,1930.8,9.33774]
[1688175568611,12.94558,1931.2,1930.8,4.1586]
[1688175568817,14.27858,1931.2,1930.8,2.4762]
[1688175569138,15.91101028,1931.2,1930.8,2.4762]
[1688175569339,18.59853212,1931.2,1930.7,1.7757355]
[1688175569553,18.59853212,1931.2,1930.7,0.0164355]
[1688175569902,4.03052184,1931.1,1930.6,2.7281]
[1688175570108,14.68401218,1931.0,1930.6,2.7281]
[1688175571309,14.68401218,1931.0,1930.6,7.90781]
[1688175571940,14.68401218,1931.0,1930.6,13.08754]
[1688175572238,13.35001218,1931.0,1930.6,7.90781]
[1688175572836,13.35001218,1931.0,1930.6,13.08754]
[1688175573417,13.35001218,1931.0,1930.6,7.90781]
[1688175573621,13.35001218,1931.0,1930.6,13.08754]
[1688175573853,12.94696,1931.0,1930.6,13.08754]
[1688175574023,5.17831,1931.2,1930.6,17.0084]
[1688175574224,5.17831,1931.2,1930.7,1.6737]
[1688175574445,5.17831,1931.2,1930.8,12.94768]
[1688175574749,5.17831,1931.2,1931.0,5.17866]
[1688175576458,10.35667,1931.2,1931.0,5.17866]
[1688175576632,10.35667,1931.2,1930.9,14.67663]
[1688175576837,10.35667,1931.2,1930.9,9.49779]
[1688175577560,10.35667,1931.2,1930.9,14.67672]
[1688175577857,5.17831,1931.2,1930.9,14.67672]
[1688175582257,5.17831,1931.2,1930.9,16.40499147]
[1688175583888,5.17831,1931.2,1930.9,14.67672]
[1688175589384,10.35643,1931.2,1930.9,14.67672]
[1688175593215,5.17812,1931.2,1930.9,14.67672]
[1688175596028,10.35624,1931.2,1930.9,14.67672]
[1688175598755,10.35624,1931.2,1930.9,9.49779]
[1688175599039,14.239817,1931.2,1930.9,2.6453]
[1688175603653,2.68752184,1931.1,1930.9,2.6453]
[1688175603829,1.334,1931.0,1930.7,2.4704]
[1688175604037,5.17893,1930.9,1930.7,2.4704]
[1688175604337,10.35786,1930.9,1930.7,2.4704]
[1688175604882,11.78598,1930.9,1930.7,2.4704]
[1688175607305,11.78598,1930.9,1930.3,3.1291389]
[1688175607306,17.06296184,1930.9,1930.3,0.5388889]
[1688175607506,1.34,1930.6,1930.4,2.5948]
[1688175607709,11.7,1930.5,1930.0,0.5388889]
[1688175607860,14.64775218,1930.5,1930.1,3.49505066]
[1688175608059,14.64775218,1930.5,1930.1,2.5948]
[1688175608758,13.09481518,1930.5,1930.1,7.77581]
[1688175609088,7.91481518,1930.5,1930.1,15.54741]
[1688175610505,2.73481518,1930.5,1930.1,15.54741]
[1688175611283,1.037063,1930.5,1930.1,15.54741]
[1688175611875,6.217073,1930.5,1930.1,15.54741]
[1688175612225,13.987083,1930.5,1930.1,7.77581]
[1688175612629,13.987083,1930.5,1930.1,2.5948]
[1688175613291,13.987083,1930.5,1929.9,1.8245]
[1688175613292,12.95135,1930.3,1929.9,1.8245]
[1688175613490,14.380785,1930.3,1929.9,2.4731]
[1688175614606,14.380785,1930.3,1929.9,12.83628]
[1688175614792,14.380785,1930.3,1929.9,7.65467]
[1688175615006,14.380785,1930.3,1929.9,12.83628]
[1688175615420,14.380785,1930.3,1929.9,7.65467]
[1688175615595,1.4380785,1930.2,1929.9,2.4731]
[1688175615790,10.36214,1930.1,1929.9,2.4731]
[1688175616001,12.95267,1930.1,1929.6,30.03]
[1688175616202,12.95267,1930.1,1929.7,2.6633]
[1688175616203,14.29167,1930.1,1929.7,2.6633]
[1688175616926,14.29167,1930.1,1929.7,7.84542]
[1688175617094,10.36322,1929.9,1929.7,7.84542]
[1688175617291,10.36322,1929.9,1929.7,2.6633]
[1688175618540,5.18161,1929.9,1929.7,7.84542]
[1688175619065,10.36322,1929.9,1929.7,7.84542]
[1688175619370,12.95402,1929.9,1929.7,2.6633]
[1688175619567,1.295402,1929.8,1929.2,0.1]
[1688175619737,12.95586,1929.7,1929.4,2.6143]
[1688175620259,5.18236,1929.7,1929.4,12.9802]
[1688175621666,10.36472,1929.7,1929.4,7.79725]
[1688175621830,12.95579,1929.7,1929.4,7.79725]
[1688175622442,12.95579,1929.7,1929.4,2.6143]
[1688175622650,14.3809092,1929.7,1929.4,2.6143]
[1688175623042,5.18236,1929.7,1929.4,2.6143]
[1688175623247,5.18173,1929.9,1929.4,15.57165]
[1688175623446,10.3635,1929.9,1929.4,15.57165]
[1688175623663,10.3635,1929.9,1929.4,16.90665]
[1688175624054,12.9543,1929.9,1929.4,15.57165]
[1688175624259,14.55001781,1929.9,1929.4,15.57165]
[1688175624777,14.55001781,1929.9,1929.4,17.32975]
[1688175624930,11.95921781,1929.9,1929.4,17.32975]
[1688175625269,1.59571781,1929.9,1929.4,17.32975]
[1688175625763,5.59368812,1930.0,1929.4,17.32975]
[1688175625967,0.41220812,1930.0,1929.4,17.32975]
[1688175626193,5.18086,1930.2,1929.5,1.339]
[1688175626393,5.1804,1930.4,1929.7,12.9551]
[1688175626601,7.86789184,1930.4,1929.9,12.95359]
[1688175626794,6.217223,1930.5,1930.0,2.6384]
[1688175627092,6.217223,1930.5,1930.1,5.18094]
[1688175627093,5.18027,1930.4,1930.1,5.18094]
[1688175627297,1.037063,1930.5,1930.1,12.95254]
[1688175627496,6.217093,1930.5,1930.1,12.95254]
[1688175627887,11.397123,1930.5,1930.1,12.95254]
[1688175628084,13.20104818,1930.5,1930.1,12.95254]
[1688175628767,0.13231561,1930.7,1930.1,12.95254]
[1688175628962,5.31192561,1930.7,1930.3,10.3608]
[1688175629198,5.17961,1930.7,1930.3,10.3608]
[1688175629425,5.17876,1931.0,1930.3,12.95107]
[1688175629560,5.17853,1931.1,1930.6,10.35905]
[1688175629876,4.14268405,1931.1,1930.6,10.35905]
[1688175630214,1.45630321,1931.1,1930.6,14.28691]
[1688175630506,1.45630321,1931.1,1930.6,14.30334635]
[1688175630717,0.41947921,1931.1,1930.6,14.30334635]
[1688175631107,5.17839,1931.1,1930.6,14.30334635]
[1688175631630,10.35678,1931.1,1930.6,10.35905]
[1688175631797,1.035678,1931.0,1930.6,10.35905]
[1688175631993,5.17896,1930.9,1930.6,10.35905]
[1688175632527,0.00321834,1930.8,1930.6,10.35905]
[1688175632883,0.00321834,1930.8,1930.6,5.17952]
[1688175633490,5.17896,1930.9,1930.6,5.17952]
[1688175634135,5.17896,1930.9,1930.6,10.35925]
[1688175634301,5.17873,1931.0,1930.6,14.244034]
[1688175634506,0.00321834,1930.8,1930.6,14.244034]
[1688175635539,5.17873,1931.0,1930.6,14.244034]
[1688175636731,0.00322651,1930.9,1930.6,14.244034]
[1688175638805,5.18219651,1930.9,1930.6,14.244034]
[1688175639108,5.18219651,1930.9,1930.6,11.654174]
[1688175639749,0.00322651,1930.9,1930.7,1.1654174]
[1688175639906,0.00322651,1930.9,1930.8,11.6964]
[1688175640240,0.00322651,1930.9,1930.8,16.9039]
[1688175640532,5.30738922,1931.5,1930.8,16.9039]
[1688175640738,5.17766,1931.4,1930.9,1.343]
[1688175641035,5.17766,1931.4,1931.0,12.94618]
[1688175641553,5.17766,1931.4,1930.9,2.99263457]
[1688175641554,10.35902917,1931.3,1930.9,5.17884]
[1688175641757,12.94794917,1931.3,1930.9,10.35759]
[1688175641922,10.35902917,1931.3,1930.9,10.35759]
[1688175642933,0.00325917,1931.3,1930.9,14.503557]
[1688175643133,0.00325917,1931.3,1931.1,12.94597]
[1688175643459,0.54638248,1931.5,1931.1,12.94597]
[1688175643832,0.12991922,1931.5,1931.1,12.94597]
[1688175644557,0.00326733,1931.4,1931.1,12.94597]
[1688175644722,0.00326733,1931.4,1931.1,14.5011373]
[1688175648982,5.18087733,1931.4,1931.1,5.17839]
[1688175649270,12.94727733,1931.4,1930.9,5.17874]
[1688175649445,12.94727733,1931.4,1930.9,10.3575]
[1688175649647,5.17818,1931.2,1930.9,10.3575]
[1688175649853,10.35601,1931.3,1930.9,12.94696]
[1688175650473,0.00325101,1931.2,1930.9,12.94696]
[1688175650677,5.18141101,1931.2,1930.9,12.94696]
[1688175650977,5.18141101,1931.2,1930.9,5.17874]
[1688175651377,5.18141101,1931.2,1930.9,10.35767]
[1688175654367,11.39551111,1931.2,1930.8,2.6179]
[1688175654569,13.98457111,1931.2,1930.8,2.6179]
[1688175654959,13.98457111,1931.2,1930.8,7.79707]
[1688175655278,13.98457111,1931.2,1930.8,2.6179]
[1688175656788,13.98457111,1931.2,1930.8,7.79709]
[1688175657187,13.98457111,1931.2,1930.8,12.97629]
[1688175658093,11.39551111,1931.2,1930.8,12.97629]
[1688175658993,10.35957101,1931.2,1930.8,12.97629]
[1688175659194,0.00325101,1931.2,1930.9,0.0164338]
[1688175659498,5.58636861,1931.4,1931.0,10.35732]
[1688175659900,0.40866861,1931.4,1931.0,12.94665]
[1688175660198,0.12991922,1931.5,1931.0,12.94665]
[1688175660199,5.30729922,1931.5,1931.1,1.294665]
[1688175660368,5.30729922,1931.5,1931.2,10.35619]
[1688175660565,0.00325917,1931.3,1931.2,10.35619]
[1688175660767,0.00325917,1931.3,1931.2,5.17807]
[1688175661095,5.18110917,1931.3,1931.1,2.5436]
[1688175661307,0.00325917,1931.3,1931.1,2.5436]
[1688175661469,5.18114917,1931.3,1931.1,2.5436]
[1688175663500,5.18114917,1931.3,1931.1,7.72195]
[1688175663735,5.18114917,1931.3,1931.1,12.90034]
[1688175664525,5.18114917,1931.3,1931.1,7.72195]
[1688175664719,5.18114917,1931.3,1931.1,2.5436]
[1688175664720,11.39492409,1931.3,1931.1,2.5436]
[1688175665211,10.35903917,1931.3,1931.1,2.5436]
[1688175665529,5.18114917,1931.3,1931.1,7.72199]
[1688175666797,10.35903917,1931.3,1931.1,2.5436]
[1688175667601,5.18114917,1931.3,1931.1,7.72197]
[1688175668930,0.00325917,1931.3,1931.1,12.90036]
[1688175669630,10.77013949,1931.4,1931.1,12.90036]
[1688175670391,0.003265,1931.3,1931.1,12.90036]
[1688175671538,10.77013949,1931.4,1931.1,12.90036]
[1688175672741,0.00326657,1931.3,1931.1,12.90036]
[1688175673438,5.59234949,1931.4,1931.1,12.90036]
[1688175673654,0.12991922,1931.5,1931.1,17.038515]
[1688175673817,10.35322,1931.8,1931.1,18.381515]
[1688175674011,5.17654,1931.8,1931.1,18.381515]
[1688175674340,6.34349232,1931.8,1931.1,18.381515]
[1688175674538,0.00317777,1931.7,1931.1,20.073915]
[1688175674740,5.18003777,1931.7,1931.1,20.073915]
[1688175676829,5.17999777,1931.7,1931.2,2.68752184]
[1688175677029,5.17999777,1931.7,1931.3,14.2873]
[1688175677030,0.00317777,1931.7,1931.3,14.2873]
[1688175677345,0.00317777,1931.7,1931.4,2.5702]
[1688175677638,0.00317777,1931.7,1931.5,10.35464]
[1688175678860,0.00317777,1931.7,1931.5,5.17732]
[1688175679233,5.17997777,1931.7,1931.5,5.17732]
[1688175679442,0.00317777,1931.7,1931.5,10.35464]
[1688175680842,0.00317777,1931.7,1931.5,5.17732]
[1688175681139,0.00317777,1931.7,1931.5,10.35464]
[1688175681351,0.00317777,1931.7,1931.5,14.6634003]
[1688175685763,0.00317777,1931.7,1931.5,14.67982899]
[1688175686987,0.00317777,1931.7,1931.5,17.36735083]
[1688175687203,0.00317777,1931.7,1931.5,18.70635083]
[1688175687398,0.00317777,1931.7,1931.5,19.20635083]
[1688175687686,1.9391,1932.0,1931.6,1.92063508]
[1688175687890,2.34991859,1932.0,1931.6,1.92063508]
[1688175688070,12.70196859,1932.0,1931.6,5.1769]
[1688175688388,7.52589859,1932.0,1931.6,5.1769]
[1688175688556,0.00309937,1931.9,1931.6,5.1769]
[1688175688906,0.00309937,1931.9,1931.6,10.35395]
[1688175689057,0.00309937,1931.9,1931.7,2.5393]
[1688175689257,0.00309937,1931.9,1931.7,14.181985]
[1688175691660,0.00309937,1931.9,1931.7,16.770375]
[1688175693999,0.00309937,1931.9,1931.7,14.181985]